bitfinex-derivatives/quotes_BTCF0:USTF0_20251219
["timestamp","ask_amount","ask_price","bid_price","bid_amount"]
[1766165767603,1e-08,87208.0,87202.0,0.0114738]
[1766165767812,1e-08,87208.0,87201.0,0.0114739]
[1766165768307,1e-08,87208.0,87196.0,0.0114747]
[1766165768511,1e-08,87208.0,87202.0,0.0114738]
[1766165769008,1e-08,87208.0,87198.0,0.0114743]
[1766165769604,1e-08,87208.0,87194.0,0.0114748]
[1766165769806,1e-08,87208.0,87168.0,0.0114783]
[1766165770118,1.46332,87207.0,87153.0,0.00604]
[1766165770313,0.0114756,87190.0,87153.0,0.00604]
[1766165770619,0.00604,87189.0,87156.0,0.0114799]
[1766165770814,0.00017201,87181.0,87168.0,0.0114783]
[1766165771118,0.011473,87209.0,87164.0,0.00017201]
[1766165771119,0.00544,87188.0,87177.0,0.0114771]
[1766165771306,0.69100642,87240.0,87150.0,0.0114807]
[1766165771307,0.0114732,87208.0,87168.0,0.0114783]
[1766165771506,0.0114736,87204.0,87179.0,0.0114768]
[1766165771715,0.00604,87203.0,87158.0,0.12458828]
[1766165771918,0.0114759,87187.0,87165.0,0.0114787]
[1766165772114,0.0114759,87187.0,87151.0,0.00604]
[1766165772115,0.00017201,87185.0,87170.0,0.011478]
[1766165772415,0.0114725,87213.0,87167.0,0.00017201]
[1766165772416,0.0114707,87226.0,87173.0,0.0114777]
[1766165772610,0.0114724,87214.0,87173.0,0.0114777]
[1766165772810,0.0114727,87212.0,87184.0,0.0114762]
[1766165773514,0.00604,87213.0,87189.0,0.00017201]
[1766165773515,0.00017201,87207.0,87189.0,0.00017201]
[1766165774012,1.46336,87223.0,87189.0,0.00017201]
[1766165774318,0.00604,87222.0,87176.0,0.00372]
[1766165774616,0.0114726,87213.0,87186.0,0.0114759]
[1766165774912,0.0114689,87240.0,87178.0,0.011477]
[1766165775111,0.0114718,87219.0,87200.0,0.00017201]
[1766165775314,0.00232,87218.0,87200.0,0.00017201]
[1766165775515,0.0114727,87212.0,87200.0,2.01e-06]
[1766165775704,0.00232,87218.0,87179.0,0.0114769]
[1766165775911,0.0114745,87198.0,87172.0,0.0114777]
[1766165776116,0.00604,87197.0,87166.0,0.00604]
[1766165776303,0.00604,87197.0,87159.0,0.09185053]
[1766165776509,0.00588,87196.0,87172.0,0.0114778]
[1766165776815,0.00017201,87193.0,87175.0,0.00017201]
[1766165777016,0.00368,87192.0,87175.0,0.00017201]
[1766165777211,2.01e-06,87193.0,87178.0,0.011477]
[1766165777511,0.0114705,87228.0,87183.0,0.0114763]
[1766165777715,0.0114716,87220.0,87182.0,0.00604]
[1766165777914,0.0114716,87220.0,87195.0,0.0114747]
[1766165778115,0.0114673,87253.0,87195.0,0.0114747]
[1766165778116,0.0114711,87223.0,87195.0,0.0114747]
[1766165778314,0.0114714,87221.0,87200.0,0.00017201]
[1766165778514,1.46332,87227.0,87200.0,0.00017201]
[1766165778515,0.00464,87220.0,87200.0,0.00017201]
[1766165778822,0.0161116,87220.0,87200.0,0.00017201]
[1766165779010,0.0114719,87217.0,87200.0,0.00017201]
[1766165779407,0.00464,87220.0,87200.0,0.00017201]
[1766165779712,1.46332,87233.0,87200.0,0.00017201]
[1766165779914,0.00604,87232.0,87208.0,0.00017201]
[1766165780121,0.0114698,87233.0,87212.0,0.0114726]
[1766165780422,0.0114698,87233.0,87208.0,0.00017201]
[1766165780423,0.0046,87232.0,87211.0,0.0114727]
[1766165780618,0.01607,87232.0,87211.0,0.0114727]
[1766165780817,0.0046,87232.0,87208.0,0.00017201]
[1766165781019,8.35437244,87269.0,87223.0,0.011471]
[1766165781020,1.46332,87240.0,87223.0,0.011471]
[1766165781222,0.00604,87239.0,87223.0,0.01164311]
[1766165781422,0.00604,87238.0,87223.0,0.01164311]
[1766165781809,0.00604,87238.0,87223.0,0.00017201]
[1766165782014,0.43384171,87260.0,87223.0,0.00017201]
[1766165782015,0.0114678,87248.0,87227.0,0.0114705]
[1766165782210,0.011468,87248.0,87227.0,0.0114705]
[1766165782414,1.46328,87247.0,87223.0,0.00017201]
[1766165782621,0.006,87246.0,87234.0,0.0114696]
[1766165782918,0.006,87245.0,87239.0,0.0114689]
[1766165783116,0.0114656,87266.0,87231.0,0.00017191]
[1766165783320,1.46324,87277.0,87249.0,0.0114676]
[1766165783618,1.46324,87277.0,87259.0,0.0114663]
[1766165783619,0.00436,87276.0,87259.0,0.0114663]
[1766165783818,0.00436,87276.0,87255.0,0.0114668]
[1766165784123,0.0114632,87284.0,87258.0,0.0114665]
[1766165784311,0.0046,87283.0,87254.0,0.00017191]
[1766165784512,0.0114628,87287.0,87254.0,0.00017191]
[1766165784824,0.44237531,87300.0,87254.0,0.00017191]
[1766165784825,1.4678,87286.0,87254.0,0.00017191]
[1766165785021,0.0114635,87282.0,87255.0,0.0114668]
[1766165785322,0.006,87285.0,87257.0,0.0114665]
[1766165785623,0.02,87300.0,87274.0,0.0114643]
[1766165785825,0.02,87300.0,87254.0,1.47475891]
[1766165785826,0.02,87300.0,87264.0,0.0046]
[1766165786010,0.02,87300.0,87288.0,0.0114625]
[1766165786215,0.006,87303.0,87291.0,0.0114621]
[1766165786420,0.006,87303.0,87288.0,0.0001718]
[1766165787213,0.0572832,87334.0,87288.0,0.0001718]
[1766165787422,0.0114604,87305.0,87288.0,0.0001718]
[1766165787913,0.006,87306.0,87288.0,0.0001718]
[1766165788120,0.0114604,87305.0,87288.0,0.0001718]
[1766165788318,0.006,87306.0,87288.0,0.0001718]
[1766165788522,0.0114599,87309.0,87288.0,0.0001718]
[1766165788523,0.0114575,87328.0,87294.0,0.0114618]
[1766165788821,0.006,87327.0,87302.0,0.0001718]
[1766165789009,0.00960668,87347.0,87304.0,0.0114604]
[1766165789010,0.0114565,87335.0,87304.0,0.0114604]
[1766165789210,1.46732,87334.0,87304.0,0.0114604]
[1766165789416,1.46268,87335.0,87303.0,0.0114606]
[1766165789617,0.0114562,87337.0,87307.0,0.0114601]
[1766165789825,0.0046,87336.0,87307.0,0.0114601]
[1766165790120,0.0114565,87335.0,87313.0,0.0001718]
[1766165790322,0.0046,87336.0,87313.0,0.0001718]
[1766165790522,0.06438429,87373.0,87313.0,0.0001718]
[1766165790523,0.0572378,87403.0,87326.0,0.57474278]
[1766165790726,0.01145,87384.0,87345.0,0.0114551]
[1766165790917,0.0114468,87409.0,87365.0,0.0114524]
[1766165791118,0.011446,87415.0,87378.0,0.0001717]
[1766165791320,0.02935253,87418.0,87379.0,0.006]
[1766165791523,0.02935253,87418.0,87381.0,0.0114504]
[1766165791825,1.46248,87420.0,87381.0,0.0114504]
[1766165792017,1.46248,87420.0,87380.0,0.006]
[1766165792018,0.0114456,87418.0,87380.0,0.006]
[1766165792213,1.46248,87420.0,87378.0,0.0001717]
[1766165792529,0.006,87421.0,87381.0,0.11441713]
[1766165792712,0.006,87421.0,87392.0,0.0114489]
[1766165792913,0.006,87421.0,87398.0,0.0001717]
[1766165793313,0.0024,87432.0,87407.0,0.0114468]
[1766165793620,0.0024,87432.0,87387.0,0.0114495]
[1766165794024,0.0024,87432.0,87392.0,0.0114489]
[1766165794322,0.0114445,87426.0,87393.0,0.00232]
[1766165794520,0.0114445,87426.0,87389.0,0.0114492]
[1766165794724,0.011446,87415.0,87399.0,0.0001716]
[1766165795024,0.006,87414.0,87386.0,0.0114496]
[1766165795228,0.006,87414.0,87381.0,0.00232]
[1766165795424,0.0114462,87413.0,87374.0,0.0114512]
[1766165795624,0.0114462,87413.0,87376.0,0.00232]
[1766165795830,0.006,87414.0,87386.0,0.0001716]
[1766165796030,0.00017029,87416.0,87386.0,0.0001716]
[1766165796325,0.00017029,87416.0,87400.0,0.0114479]
[1766165796528,0.00017029,87416.0,87397.0,0.0114483]
[1766165796924,0.00017029,87416.0,87387.0,0.11442367]
[1766165797122,0.00017029,87416.0,87395.0,0.00576]
[1766165797322,0.00464,87415.0,87391.0,0.00232]
[1766165797524,0.00017029,87416.0,87391.0,0.00232]
[1766165797721,0.00017029,87416.0,87397.0,0.0114483]
[1766165797929,0.00017029,87416.0,87402.0,0.0114476]
[1766165798118,9e-08,87416.0,87407.0,0.0114469]
[1766165798317,9e-08,87416.0,87403.0,0.006]
[1766165798518,9e-08,87416.0,87400.0,0.0114478]
[1766165798519,9e-08,87416.0,87398.0,0.0114481]
[1766165798723,9e-08,87416.0,87386.0,0.0001716]
[1766165798724,9e-08,87416.0,87397.0,0.006]
[1766165798924,9e-08,87416.0,87402.0,0.0114476]
[1766165799227,9e-08,87416.0,87397.0,0.006]
[1766165799418,1.46104,87445.0,87403.0,0.11440731]
[1766165799618,0.006,87444.0,87418.0,0.0114454]
[1766165799831,0.006,87444.0,87419.0,0.006]
[1766165800238,0.006,87444.0,87390.0,0.57474278]
[1766165800239,0.0114429,87439.0,87406.0,0.0114471]
[1766165800426,0.0001716,87431.0,87414.0,0.0001716]
[1766165800834,0.0116155,87431.0,87414.0,0.0001716]
[1766165801030,0.0001716,87431.0,87375.0,9.213e-05]
[1766165801232,0.00576,87432.0,87376.0,1.46684]
[1766165801528,0.0114475,87404.0,87385.0,0.11438702]
[1766165801727,0.0114475,87404.0,87384.0,0.006]
[1766165802026,0.0001716,87403.0,87385.0,0.0001716]
[1766165802429,0.0114451,87421.0,87385.0,0.0001716]
[1766165802629,0.0114459,87415.0,87389.0,0.0114493]
[1766165802826,0.0114459,87415.0,87390.0,0.0046]
[1766165803130,0.005,87417.0,87390.0,0.0046]
[1766165803332,0.005,87417.0,87390.0,0.0160491]
[1766165803534,0.0001716,87412.0,87395.0,0.0001716]
[1766165804034,0.0114473,87405.0,87379.0,0.0114506]
[1766165804230,0.0160473,87405.0,87379.0,0.0114506]
[1766165804428,0.0160473,87405.0,87385.0,0.0114498]
[1766165804429,0.0046,87405.0,87385.0,0.0114498]
[1766165804736,0.0114467,87410.0,87385.0,0.0114498]
[1766165804934,0.00464,87409.0,87389.0,0.0001716]
[1766165805319,0.0114469,87408.0,87389.0,0.0001716]
[1766165805526,0.00464,87409.0,87389.0,0.0001716]
[1766165805833,0.0160868,87409.0,87389.0,0.0001716]
[1766165806224,0.0114478,87401.0,87375.0,9.213e-05]
[1766165806423,0.0114477,87402.0,87378.0,0.0114507]
[1766165807229,0.0114471,87407.0,87381.0,0.0001716]
[1766165807435,0.0114502,87383.0,87375.0,2.13e-06]
[1766165807629,0.0114506,87380.0,87356.0,0.0114536]
[1766165808034,0.006,87383.0,87353.0,0.0046]
[1766165808426,0.0001716,87377.0,87359.0,0.0001716]
[1766165808628,0.00010662,87376.0,87359.0,0.0001716]
[1766165809121,0.0114515,87373.0,87359.0,0.0001716]
[1766165809339,0.0114517,87371.0,87351.0,0.00168]
[1766165809627,0.00010662,87376.0,87351.0,0.00168]
[1766165809828,0.00010662,87376.0,87360.0,0.0114531]
[1766165810922,0.00010662,87376.0,87359.0,0.0001717]
[1766165812135,0.00010662,87376.0,87359.0,0.0061717]
[1766165812331,0.00010662,87376.0,87359.0,0.0001717]
[1766165813935,1.46036,87397.0,87360.0,0.28692898]
[1766165814128,0.006,87396.0,87376.0,0.0114509]
[1766165814329,0.006,87396.0,87372.0,0.0114514]
[1766165814722,0.006,87396.0,87366.0,0.006]
[1766165814924,0.0116209,87390.0,87372.0,0.0001717]
[1766165815247,0.0114494,87389.0,87372.0,0.0001717]
[1766165815426,0.0001717,87390.0,87372.0,0.0001717]
[1766165815631,0.0001717,87390.0,87372.0,1.7e-06]
[1766165815632,0.011621,87390.0,87372.0,1.7e-06]
[1766165815825,0.0001717,87390.0,87372.0,1.7e-06]
[1766165816628,0.0001717,87390.0,87373.0,0.0114514]
[1766165817031,0.0001717,87390.0,87384.0,0.0114499]
[1766165817526,0.0001717,87390.0,87372.0,1.7e-06]
[1766165817527,0.006,87392.0,87388.0,0.0114494]
[1766165817834,0.006,87399.0,87384.0,0.0114499]
[1766165818628,0.006,87399.0,87383.0,0.0001717]
[1766165819032,0.006,87399.0,87384.0,0.01145]
[1766165819429,0.006,87399.0,87383.0,0.0001717]
[1766165820034,0.0174481,87399.0,87383.0,0.0001717]
[1766165820241,0.28692898,87393.0,87350.0,1.46032]
[1766165820433,0.0114519,87370.0,87340.0,1.46032]
[1766165820624,0.0114494,87389.0,87339.0,0.0174558]
[1766165820625,0.0114514,87374.0,87339.0,0.0174558]
[1766165820829,0.0114525,87365.0,87345.0,0.011455]
[1766165821030,0.00444,87365.0,87339.0,0.006]
[1766165821339,0.0001717,87361.0,87343.0,0.0001717]
[1766165821840,0.0001717,87361.0,87348.0,0.0114546]
[1766165822340,0.0001717,87361.0,87350.0,0.0114543]
[1766165822948,0.0114536,87357.0,87343.0,0.0001717]
[1766165823134,0.011455,87346.0,87333.0,0.00012651]
[1766165823340,0.017455,87346.0,87326.0,0.0114576]
[1766165824033,0.0001717,87345.0,87327.0,0.00011624]
[1766165824536,0.00011989,87344.0,87300.0,0.28692898]
[1766165824838,0.00011989,87344.0,87295.0,1.46046271]
[1766165824839,0.00011989,87344.0,87320.0,0.28692898]
[1766165825342,0.00011989,87344.0,87322.0,0.0114581]
[1766165825742,0.00011989,87344.0,87318.0,0.006]
[1766165825937,0.0001717,87345.0,87320.0,0.28692898]
[1766165826236,0.0114521,87368.0,87343.0,0.0114553]
[1766165826440,0.006,87367.0,87343.0,0.0114553]
[1766165826640,0.006,87367.0,87342.0,0.0114554]
[1766165826841,0.0114529,87362.0,87339.0,0.006]
[1766165827048,0.0001717,87359.0,87342.0,0.0001717]
[1766165828329,0.006,87367.0,87346.0,0.0114549]
[1766165828733,0.006,87367.0,87342.0,0.0001717]
[1766165828936,0.3256,87397.0,87350.0,0.28692898]
[1766165829135,0.0114501,87384.0,87358.0,0.0114533]
[1766165829442,0.0001717,87380.0,87362.0,0.0001717]
[1766165829939,0.0001717,87380.0,87314.0,0.06086038]
[1766165829940,0.0114542,87352.0,87310.0,0.28692898]
[1766165830140,0.0114545,87350.0,87312.0,0.0114594]
[1766165830442,0.0114568,87333.0,87315.0,0.11445445]
[1766165830634,0.00508,87332.0,87310.0,0.0114596]
[1766165830948,0.0001717,87330.0,87312.0,0.0001717]
[1766165831143,0.0001717,87330.0,87313.0,0.0114593]
[1766165831530,0.0001717,87330.0,87312.0,0.0001717]
[1766165832442,0.0114572,87329.0,87312.0,0.0001717]
[1766165832759,0.0001717,87330.0,87295.0,0.00202271]
[1766165832940,0.0001717,87330.0,87312.0,0.0114593]
[1766165833146,0.0001717,87330.0,87310.0,0.0114596]
[1766165833445,0.006,87329.0,87300.0,0.28692898]
[1766165833638,0.0001717,87330.0,87305.0,0.0114603]
[1766165833839,0.00464,87329.0,87307.0,0.01146]
[1766165834136,0.00464,87329.0,87303.0,0.0114606]
[1766165834335,0.0001717,87330.0,87316.0,0.0114589]
[1766165834543,0.00356,87329.0,87316.0,0.0114589]
[1766165834937,0.00356,87329.0,87318.0,0.0114585]
[1766165835141,1e-07,87330.0,87327.0,0.0114574]
[1766165835331,1e-07,87333.0,87310.0,0.28692898]
[1766165835530,1.46076,87348.0,87310.0,0.28692898]
[1766165835842,1.4608,87366.0,87326.0,0.0114575]
[1766165836043,0.006,87365.0,87346.0,0.0114549]
[1766165836345,0.006,87365.0,87330.0,0.28692898]
[1766165836346,0.0061717,87364.0,87347.0,0.0001717]
[1766165836842,0.006,87363.0,87347.0,0.0001717]
[1766165837045,0.0114529,87362.0,87347.0,0.0001717]
[1766165837239,0.006,87363.0,87347.0,0.0001717]
[1766165837836,0.006,87362.0,87347.0,0.0001717]
[1766165838241,0.0114533,87359.0,87334.0,0.0114565]
[1766165838444,0.0174529,87362.0,87336.0,0.0114561]
[1766165838644,0.0174529,87362.0,87332.0,0.0154567]
[1766165838645,0.0114537,87356.0,87332.0,0.0154567]
[1766165839046,0.0114535,87357.0,87336.0,0.0114562]
[1766165839350,0.28692898,87360.0,87331.0,0.0114568]
[1766165839546,1.4608,87368.0,87331.0,0.0114569]
[1766165839735,1.4608,87372.0,87355.0,0.0114538]
[1766165839940,0.28692898,87390.0,87348.0,0.0114547]
[1766165840249,0.09002729,87404.0,87380.0,0.0114505]
[1766165840250,1.4608,87401.0,87380.0,0.0114505]
[1766165840445,0.006,87400.0,87380.0,0.0114504]
[1766165840650,0.0001717,87399.0,87382.0,0.0001717]
[1766165840949,0.006,87398.0,87382.0,0.0001717]
[1766165842056,0.011449,87392.0,87368.0,0.011452]
[1766165842351,0.0114495,87388.0,87367.0,0.0114522]
[1766165842551,0.00572,87387.0,87367.0,0.0114522]
[1766165842759,0.00572,87387.0,87362.0,0.00176]
[1766165842949,0.00572,87387.0,87353.0,0.00072]
[1766165843148,0.0001717,87379.0,87359.0,0.0114531]
[1766165843354,0.0001717,87379.0,87353.0,0.00072]
[1766165843355,0.0114513,87374.0,87353.0,0.00072]
[1766165843546,0.0114513,87374.0,87350.0,0.0114543]
[1766165843853,0.0114513,87374.0,87352.0,0.0114541]
[1766165844046,0.0114509,87377.0,87355.0,0.0114538]
[1766165844248,0.0114509,87377.0,87351.0,0.0114542]
[1766165844652,0.00572,87378.0,87344.0,0.006]
[1766165844953,0.0001717,87379.0,87344.0,0.006]
[1766165845150,0.00232,87378.0,87344.0,0.006]
[1766165845352,0.0137708,87378.0,87344.0,0.006]
[1766165845550,0.0114514,87374.0,87348.0,0.0114546]
[1766165845747,0.0114509,87377.0,87351.0,0.0114543]
[1766165845942,0.00232,87378.0,87344.0,0.006]
[1766165846142,0.00232,87378.0,87350.0,0.28692898]
[1766165846348,0.011451,87377.0,87350.0,0.28692898]
[1766165846545,0.0114518,87371.0,87345.0,0.011455]
[1766165846845,0.006,87370.0,87344.0,0.006]
[1766165847051,0.006,87370.0,87352.0,0.0114541]
[1766165847246,0.006,87370.0,87348.0,0.0114546]
[1766165847645,0.006,87370.0,87344.0,0.006]
[1766165848251,0.006,87370.0,87353.0,0.011454]
[1766165849158,0.006,87370.0,87355.0,0.0114537]
[1766165849457,0.00304,87373.0,87365.0,0.0114525]
[1766165850248,0.0001717,87379.0,87365.0,0.0114525]
[1766165850454,0.0001717,87379.0,87367.0,0.0114521]
[1766165850762,0.00356,87378.0,87367.0,0.0114521]
[1766165850942,0.00356,87378.0,87364.0,0.0114526]
[1766165851142,1.7e-06,87379.0,87362.0,0.0114528]
[1766165851341,0.006,87385.0,87360.0,0.4207799]
[1766165851542,0.006,87385.0,87372.0,0.0114515]
[1766165851748,0.006,87385.0,87360.0,0.432233]
[1766165851952,0.006,87385.0,87373.0,0.0114514]
[1766165852149,0.3256,87406.0,87359.0,0.0114532]
[1766165852352,0.0001717,87391.0,87378.0,0.0114507]
[1766165852553,0.00356,87390.0,87375.0,0.0114511]
[1766165852954,0.00356,87390.0,87374.0,0.0001717]
[1766165853459,0.0001717,87391.0,87378.0,0.0114507]
[1766165853654,0.0001717,87391.0,87380.0,0.0114504]
[1766165853856,0.0001717,87391.0,87374.0,0.0001717]
[1766165853857,1.7e-06,87391.0,87385.0,0.0114497]
[1766165854159,1.7e-06,87391.0,87388.0,0.0114494]
[1766165855155,1.7e-06,87391.0,87374.0,0.0001717]
[1766165855363,1.7e-06,87391.0,87386.0,0.0114497]
[1766165855857,1.7e-06,87391.0,87389.0,0.0114493]
[1766165856162,0.0114442,87429.0,87374.0,0.0001717]
[1766165856163,0.3256,87430.0,87403.0,0.0114474]
[1766165856457,0.01020699,87442.0,87395.0,0.006]
[1766165856759,0.006,87441.0,87414.0,0.011446]
[1766165856957,0.00334695,87466.0,87409.0,0.0174466]
[1766165856958,0.0174428,87440.0,87409.0,0.0174466]
[1766165857146,0.00017159,87436.0,87419.0,0.00017159]
[1766165857962,0.00017159,87436.0,87381.0,0.0114503]
[1766165857963,0.0114447,87425.0,87398.0,0.0114481]
[1766165858158,0.006,87424.0,87380.0,0.42007914]
[1766165858459,0.0114459,87416.0,87389.0,0.0114493]
[1766165858646,1.46028,87415.0,87362.0,0.0114528]
[1766165858852,0.0642047,87453.0,87393.0,0.0114487]
[1766165858853,0.006,87414.0,87393.0,0.0114487]
[1766165859052,0.006,87413.0,87393.0,0.0114487]
[1766165859254,0.0114445,87426.0,87396.0,0.0114483]
[1766165859554,1.46476,87425.0,87390.0,0.42007914]
[1766165859754,0.006,87424.0,87390.0,0.006]
[1766165859955,0.00017159,87416.0,87400.0,0.0114478]
[1766165860363,0.00017159,87416.0,87403.0,0.0114474]
[1766165860660,0.011446,87415.0,87398.0,0.00017159]
[1766165860853,0.00017159,87416.0,87398.0,0.00017159]
[1766165861248,0.00017159,87416.0,87402.0,0.0114475]
[1766165861451,9e-08,87416.0,87398.0,0.01161969]
[1766165861659,9e-08,87416.0,87398.0,0.00017159]
[1766165861960,0.006,87415.0,87398.0,1.59e-06]
[1766165862161,9e-08,87416.0,87398.0,1.59e-06]
[1766165862357,0.006,87415.0,87399.0,0.011448]
[1766165862657,9e-08,87416.0,87402.0,0.0114476]
[1766165862855,9e-08,87416.0,87406.0,0.011447]
[1766165863060,9e-08,87416.0,87398.0,1.59e-06]
[1766165863557,0.0114437,87432.0,87403.0,0.0114474]
[1766165863757,0.00056,87430.0,87404.0,0.00224]
[1766165863959,0.00056,87430.0,87404.0,0.0022]
[1766165864154,0.00056,87430.0,87405.0,0.0114472]
[1766165864356,0.00017159,87426.0,87409.0,0.00017159]
[1766165865552,0.00017159,87426.0,87390.0,0.00472]
[1766165865748,0.01161619,87426.0,87390.0,0.00472]
[1766165865950,0.01161619,87426.0,87402.0,0.0114476]
[1766165866162,0.0046,87425.0,87402.0,0.0114476]
[1766165866361,0.0046,87425.0,87404.0,0.0114472]
[1766165866560,1.46013159,87426.0,87406.0,0.00017159]
[1766165866561,9e-08,87426.0,87406.0,0.00017159]
[1766165866952,9e-08,87426.0,87407.0,0.0114469]
[1766165867154,9e-08,87426.0,87420.0,0.0114452]
[1766165867348,9e-08,87426.0,87416.0,0.0114457]
[1766165867559,9e-08,87426.0,87412.0,0.0114463]
[1766165867751,9e-08,87426.0,87406.0,0.00017159]
[1766165867948,0.0114392,87467.0,87416.0,0.42007914]
[1766165868152,0.0114392,87467.0,87407.0,1.5171544]
[1766165868153,0.0114406,87457.0,87431.0,0.0114438]
[1766165868360,0.006,87465.0,87443.0,0.0114422]
[1766165868559,0.06025622,87504.0,87426.0,0.00456]
[1766165868863,0.07934236,87518.0,87450.0,0.42007914]
[1766165868864,0.0114367,87486.0,87450.0,0.42007914]
[1766165869161,0.04127423,87509.0,87450.0,0.42007914]
[1766165869162,0.00017149,87477.0,87459.0,0.00017149]
[1766165869354,0.00017149,87477.0,87463.0,0.0114396]
[1766165869554,0.00017149,87477.0,87459.0,0.00017149]
[1766165870261,0.01160939,87477.0,87459.0,0.00017149]
[1766165870461,0.01160939,87477.0,87451.0,0.006]
[1766165870462,0.42007914,87470.0,87430.0,0.0114439]
[1766165870660,0.42007914,87470.0,87426.0,0.0114444]
[1766165870959,0.0114413,87451.0,87425.0,0.0114446]
[1766165871168,0.0114413,87451.0,87412.0,0.00528]
[1766165871169,0.006,87450.0,87415.0,0.0114458]
[1766165871462,0.00017149,87447.0,87430.0,0.00017149]
[1766165871666,0.0024,87446.0,87434.0,0.0114434]
[1766165871859,0.0024,87446.0,87438.0,0.0114429]
[1766165872059,0.00284,87449.0,87436.0,0.0114431]
[1766165872262,0.0012,87451.0,87436.0,0.0114431]
[1766165872466,0.42007914,87480.0,87430.0,0.42007914]
[1766165872467,0.0114388,87470.0,87430.0,0.42007914]
[1766165872661,0.00017149,87459.0,87441.0,0.00017149]
[1766165872866,0.006,87458.0,87441.0,0.00017149]
[1766165873068,0.00017149,87459.0,87441.0,0.00017149]
[1766165873267,0.006,87458.0,87442.0,0.0114424]
[1766165873455,0.006,87458.0,87441.0,0.00017149]
[1766165874062,0.006,87458.0,87421.0,0.0114451]
[1766165874270,0.0114414,87450.0,87424.0,0.0114447]
[1766165874569,0.0114414,87450.0,87427.0,0.01157867]
[1766165874767,0.0114428,87439.0,87397.0,0.0046]
[1766165874966,0.00452,87438.0,87414.0,0.011446]
[1766165875274,0.00017149,87435.0,87417.0,0.00017149]
[1766165875670,0.00011,87434.0,87417.0,0.00017149]
[1766165876157,0.00011,87434.0,87418.0,0.0114455]
[1766165876667,0.00011,87434.0,87417.0,0.00017149]
[1766165876859,0.00011,87434.0,87421.0,0.011445]
[1766165877060,0.00012,87433.0,87424.0,0.0114447]
[1766165877463,0.00012,87433.0,87417.0,0.00017149]
[1766165877773,0.00012,87433.0,87401.0,0.0114477]
[1766165877961,0.0114444,87427.0,87388.0,0.00348]
[1766165878161,0.00012,87426.0,87396.0,0.0114484]
[1766165878558,0.0114451,87421.0,87399.0,0.011448]
[1766165878762,0.0001716,87419.0,87399.0,0.011448]
[1766165879168,0.0114455,87418.0,87385.0,1.45948]
[1766165879364,0.0001716,87419.0,87379.0,0.00452]
[1766165879560,0.0114458,87417.0,87380.0,0.42007914]
[1766165879759,0.0046,87416.0,87397.0,0.0114482]
[1766165879965,0.00504,87415.0,87400.0,0.0114478]
[1766165880170,1.45948,87423.0,87399.0,0.0001716]
[1766165880171,0.006,87423.0,87399.0,0.0001716]
[1766165880368,0.00236,87422.0,87399.0,0.0001716]
[1766165880670,0.0114441,87429.0,87406.0,0.0114471]
[1766165880869,0.0114444,87427.0,87402.0,0.0114475]
[1766165881173,0.0001716,87423.0,87402.0,0.0114475]
[1766165881565,0.0001716,87423.0,87399.0,0.0001716]
[1766165882273,0.0114455,87419.0,87399.0,0.0001716]
[1766165883079,0.0001716,87423.0,87401.0,0.0114477]
[1766165883263,0.0001716,87423.0,87404.0,0.0114473]
[1766165883465,0.0001716,87423.0,87400.0,0.0114478]
[1766165883666,0.0001716,87423.0,87403.0,0.0114475]
[1766165883975,0.0001716,87423.0,87399.0,0.0116195]
[1766165884769,0.0001716,87423.0,87399.0,0.0001716]
[1766165884970,0.006,87422.0,87399.0,0.0001716]
[1766165885375,0.0114456,87418.0,87399.0,0.0001716]
[1766165885674,0.0114468,87409.0,87399.0,0.0001716]
[1766165885874,0.0001716,87423.0,87399.0,0.0001716]
[1766165885875,0.00587691,87408.0,87399.0,1.6e-06]
[1766165888170,1e-08,87408.0,87399.0,1.6e-06]
[1766165888372,1.6e-06,87423.0,87415.0,0.0114459]
[1766165889482,1.6e-06,87423.0,87413.0,0.0114461]
[1766165889673,1.6e-06,87423.0,87413.0,0.0114462]
[1766165889873,1.6e-06,87423.0,87415.0,0.0114458]
[1766165890170,1.6e-06,87423.0,87402.0,0.0114476]
[1766165890375,1.6e-06,87423.0,87414.0,0.011446]
[1766165890571,1.6e-06,87423.0,87412.0,0.0114462]
[1766165890768,0.0114453,87420.0,87399.0,1.6e-06]
[1766165890978,0.0114464,87412.0,87399.0,1.6e-06]
[1766165891375,0.015966,87415.0,87399.0,1.6e-06]
[1766165891979,1.6e-06,87423.0,87399.0,1.6e-06]
[1766165892175,1.6e-06,87423.0,87411.0,0.0114464]
[1766165892578,0.006,87422.0,87413.0,0.0114461]
[1766165892881,0.006,87422.0,87410.0,0.0114465]
[1766165893083,0.006,87421.0,87412.0,0.0114462]
[1766165893272,1.6e-06,87423.0,87412.0,0.0114462]
[1766165893480,1.6e-06,87423.0,87414.0,0.011446]
[1766165893677,1.45964,87438.0,87414.0,0.011446]
[1766165893678,0.00336,87426.0,87414.0,0.011446]
[1766165894070,0.00336,87426.0,87410.0,0.0114465]
[1766165894669,0.00336,87426.0,87412.0,0.0114463]
[1766165894883,0.0001716,87427.0,87412.0,0.0114463]
[1766165895085,0.00512,87426.0,87412.0,0.0114463]
[1766165895683,0.0971,87443.0,87423.0,0.0114448]
[1766165895876,0.0114427,87440.0,87419.0,0.0114453]
[1766165896077,0.0114427,87440.0,87421.0,0.0114451]
[1766165896276,0.0971,87443.0,87426.0,0.0114444]
[1766165896477,0.0971,87443.0,87411.0,0.0114464]
[1766165896478,0.006,87439.0,87425.0,0.0114446]
[1766165896678,0.006,87438.0,87422.0,0.011445]
[1766165896879,0.006,87438.0,87419.0,0.0114454]
[1766165897185,0.0114434,87435.0,87416.0,0.0114457]
[1766165897385,0.0114434,87435.0,87411.0,0.00568]
[1766165897386,0.006,87435.0,87420.0,0.0114452]
[1766165897582,0.0116142,87441.0,87420.0,0.0114452]
[1766165897583,1e-07,87441.0,87420.0,0.0114452]
[1766165897796,1e-07,87441.0,87414.0,0.011446]
[1766165898104,0.0114427,87441.0,87420.0,0.0114452]
[1766165898301,0.0114427,87441.0,87409.0,0.0001716]
[1766165898302,1e-07,87441.0,87413.0,0.0114461]
[1766165898606,0.0114435,87434.0,87413.0,0.0114461]
[1766165898800,0.011444,87430.0,87410.0,0.0114465]
[1766165899003,0.0114445,87427.0,87396.0,0.0114484]
[1766165899302,0.0114428,87439.0,87392.0,0.0915507]
[1766165899503,0.0114441,87429.0,87409.0,0.0114467]
[1766165899801,0.42007914,87450.0,87394.0,0.0114486]
[1766165899802,0.00452,87428.0,87408.0,0.0114468]
[1766165899996,0.0114453,87421.0,87409.0,0.0001716]
[1766165900299,0.0001716,87427.0,87409.0,0.0001716]
[1766165900300,0.006,87420.0,87409.0,0.0001716]